fUST/lending_fUST_20250314
["ID","MTS","AMOUNT","RATE_DAILY","PERIOD"]
[356102715,1741909544529,-486.26231496,0.00013649,2]
[356102716,1741909544553,-465.0945111,0.00013672,2]
[356102717,1741909544575,-388.2035352,0.00013672,2]
[356102718,1741909544596,-500.0,0.00013673,2]
[356102719,1741909544617,-500.0,0.00013673,2]
[356102720,1741909544638,-160.79470745,0.00013673,2]
[356102721,1741909544661,-500.0,0.00013673,2]
[356102722,1741909544682,-500.0,0.00013673,2]
[356102723,1741909544702,-500.0,0.00013673,2]
[356102724,1741909544723,-500.0,0.00013673,2]
[356102725,1741909544746,-500.0,0.00013673,2]
[356102726,1741909544768,-500.14574738,0.00013673,2]
[356102727,1741909544789,-317.5918561,0.00013673,2]
[356102728,1741909544811,-500.0,0.00013673,2]
[356102729,1741909544831,-501.6128383,0.00013673,2]
[356102730,1741909544853,-500.0,0.00013673,2]
[356102731,1741909544874,-500.0,0.00013673,2]
[356102732,1741909544896,-500.0,0.00013673,2]
[356102733,1741909544917,-500.0,0.00013673,2]
[356102734,1741909544939,-500.0,0.00013673,2]
[356102735,1741909544960,-500.0,0.00013673,2]
[356102736,1741909544980,-500.0,0.00013673,2]
[356102737,1741909545001,-500.0,0.00013673,2]
[356102738,1741909545022,-500.0,0.00013673,2]
[356102739,1741909545042,-327.68473679,0.00013673,2]
[356102740,1741909545062,-500.0,0.00013673,2]
[356102741,1741909545083,-500.0,0.00013673,2]
[356102742,1741909545104,-500.10605809,0.00013673,2]
[356102743,1741909545124,-500.0,0.00013673,2]
[356102744,1741909545144,-500.0,0.00013673,2]
[356102745,1741909545164,-505.09364834,0.00013673,2]
[356102746,1741909545185,-800.0,0.00013676,2]
[356102747,1741909545207,-500.0,0.00013698,2]
[356102748,1741909545228,-500.0,0.00013698,2]
[356102749,1741909545249,-500.0,0.00013698,2]
[356102750,1741909545270,-730.72,0.00013698,2]
[356102751,1741909545291,-500.0,0.00013698,2]
[356102752,1741909545311,-500.0,0.00013698,2]
[356102753,1741909545333,-500.0,0.00013698,2]
[356102754,1741909545354,-500.0,0.00013698,2]
[356102755,1741909545375,-151.0,0.00013698,2]
[356102756,1741909545396,-151.0,0.00013698,2]
[356102757,1741909545419,-151.0,0.00013698,2]
[356102758,1741909545439,-500.0,0.00013698,2]
[356102759,1741909545460,-538.55,0.00013698,2]
[356102760,1741909545480,-500.0,0.00013698,2]
[356102761,1741909545502,-500.0,0.00013698,2]
[356102762,1741909545522,-586.4,0.00013698,2]
[356102763,1741909545542,-500.0,0.00013698,2]
[356102764,1741909545562,-500.0,0.00013698,2]
[356102765,1741909545583,-630.19245089,0.00013698,2]
[356102766,1741909545603,-500.0,0.00013698,2]
[356102767,1741909545624,-500.0,0.00013698,2]
[356102768,1741909545644,-951.28,0.00013698,2]
[356102769,1741909545665,-500.0,0.00013698,2]
[356102770,1741909545686,-500.0,0.00013698,2]
[356102771,1741909545707,-992.81,0.00013698,2]
[356102772,1741909545728,-561.17,0.00013698,2]
[356102773,1741909545748,-703.89,0.00013698,2]
[356102774,1741909545769,-500.0,0.00013698,2]
[356102775,1741909545790,-500.0,0.00013698,2]
[356102776,1741909545810,-709.77,0.00013698,2]
[356102777,1741909545831,-500.0,0.00013698,2]
[356102778,1741909545850,-500.0,0.00013698,2]
[356102779,1741909545870,-500.0,0.00013698,2]
[356102780,1741909545891,-500.0,0.00013698,2]
[356102781,1741909545913,-500.0,0.00013698,2]
[356102782,1741909545933,-500.0,0.00013698,2]
[356102783,1741909545953,-599.23,0.00013698,2]
[356102784,1741909545980,-500.0,0.00013698,2]
[356102785,1741909546012,-500.0,0.00013698,2]
[356102786,1741909546042,-1373.61,0.00013698,2]
[356102787,1741909546069,-500.0,0.00013698,2]
[356102788,1741909546095,-500.0,0.00013698,2]
[356102789,1741909546123,-500.0,0.00013698,2]
[356102790,1741909546152,-982.66,0.00013698,2]
[356102791,1741909546180,-500.0,0.00013698,2]
[356102792,1741909546208,-259.13793926,0.00013698,2]
[356102793,1741909546235,-500.0,0.00013698,2]
[356102794,1741909546262,-500.0,0.00013698,2]
[356102795,1741909546287,-500.0,0.00013698,2]
[356102796,1741909546314,-265.885306,0.00013698,2]
[356102797,1741909546340,-265.885306,0.00013698,2]
[356102798,1741909546368,-839.7,0.00013698,2]
[356102799,1741909546395,-265.885306,0.00013698,2]
[356102800,1741909546420,-265.885306,0.00013698,2]
[356102801,1741909546444,-249.59934652,0.00013698,2]
[356102802,1741909546468,-1076.37,0.00013698,2]
[356102803,1741909546494,-500.0,0.00013698,2]
[356102804,1741909546522,-500.0,0.00013698,2]
[356102805,1741909546549,-513.23,0.00013698,2]
[356102806,1741909546576,-500.0,0.00013698,2]
[356102807,1741909546604,-500.0,0.00013698,2]
[356102808,1741909546630,-500.0,0.00013698,2]
[356102809,1741909546653,-731.8,0.00013698,2]
[356102810,1741909546676,-722.97,0.00013698,2]
[356102811,1741909546702,-618.39,0.00013698,2]
[356102812,1741909546731,-500.0,0.00013698,2]
[356102813,1741909546756,-500.0,0.00013698,2]
[356102814,1741909546782,-538.86,0.00013698,2]
[356102815,1741909546806,-500.0,0.00013698,2]
[356102816,1741909546832,-500.0,0.00013698,2]
[356102817,1741909546856,-539.26,0.00013698,2]
[356102818,1741909546880,-538.27,0.00013698,2]
[356102819,1741909546904,-500.0,0.00013698,2]
[356102820,1741909546929,-500.83,0.00013698,2]
[356102821,1741909546954,-500.0,0.00013698,2]
[356102822,1741909546979,-550.06,0.00013698,2]
[356102823,1741909547008,-500.0,0.00013698,2]
[356102824,1741909547033,-500.0,0.00013698,2]
[356102825,1741909547058,-500.0,0.00013698,2]
[356102826,1741909547083,-500.0,0.00013698,2]
[356102827,1741909547109,-510.43,0.00013698,2]
[356102828,1741909547133,-500.0,0.00013698,2]
[356102829,1741909547158,-500.0,0.00013698,2]
[356102830,1741909547184,-937.9,0.00013698,2]
[356102831,1741909547209,-500.0,0.00013698,2]
[356102832,1741909547233,-1019.97,0.00013698,2]
[356102833,1741909547257,-1133.78,0.00013698,2]
[356102834,1741909547281,-500.0,0.00013698,2]
[356102835,1741909547305,-1378.81,0.00013698,2]
[356102836,1741909547329,-952.31,0.00013698,2]
[356102837,1741909547357,-658.34,0.00013698,2]
[356102838,1741909547382,-1868.15,0.00013698,2]
[356102839,1741909547406,-612.72,0.00013698,2]
[356102840,1741909547433,-1419.12,0.00013698,2]
[356102841,1741909547457,-640.69,0.00013698,2]
[356102842,1741909547481,-151.0,0.00013698,2]
[356102843,1741909547507,-151.0,0.00013698,2]
[356102844,1741909547531,-151.0,0.00013698,2]
[356102845,1741909547555,-676.65,0.00013698,2]
[356102846,1741909547580,-500.0,0.00013698,2]
[356102847,1741909547605,-500.0,0.00013698,2]
[356102848,1741909547631,-500.0,0.00013698,2]
[356102849,1741909547656,-2023.6,0.00013698,2]
[356102850,1741909547681,-500.0,0.00013698,2]
[356102851,1741909547705,-1000.60000002,0.00013698,2]
[356102852,1741909547730,-500.0,0.00013698,2]
[356102853,1741909547756,-133643.19370944,0.00013698,2]
[356102854,1741909608093,-213.34601026,0.00012563,2]
[356102855,1741909644083,-6329.81633164,0.00012563,2]
[356102856,1741909644106,-354.63233225,0.00013598,2]
[356102857,1741909644131,-800.0,0.00013649,2]
[356102858,1741909644154,-300.0,0.00013672,2]
[356102859,1741909644174,-256.82833148,0.00013673,2]
[356102860,1741909644194,-519.34971061,0.00013673,2]
[356102861,1741909644216,-500.0,0.00013673,2]
[356102862,1741909644237,-424.49315544,0.00013673,2]
[356102863,1741909644258,-500.0,0.00013673,2]
[356102864,1741909644279,-500.0,0.00013673,2]
[356102865,1741909644300,-500.92560493,0.00013673,2]
[356102866,1741909644322,-271.74247464,0.00013697,2]
[356102867,1741909644345,-325.56615777,0.00013697,2]
[356102868,1741909644371,-514.42,0.00013698,2]
[356102869,1741909644392,-1163.23,0.00013698,2]
[356102870,1741909644412,-500.0,0.00013698,2]
[356102871,1741909644433,-500.0,0.00013698,2]
[356102872,1741909644455,-500.0,0.00013698,2]
[356102873,1741909644477,-500.0,0.00013698,2]
[356102874,1741909644498,-500.06,0.00013698,2]
[356102875,1741909644521,-543.15,0.00013698,2]
[356102876,1741909644543,-514.21,0.00013698,2]
[356102877,1741909644564,-592.69,0.00013698,2]
[356102878,1741909644585,-500.0,0.00013698,2]
[356102879,1741909644606,-151.0,0.00013698,2]
[356102880,1741909644628,-151.0,0.00013698,2]
[356102881,1741909644649,-500.0,0.00013698,2]
[356102882,1741909644670,-500.0,0.00013698,2]
[356102883,1741909644692,-538.18,0.00013698,2]
[356102884,1741909644714,-500.0,0.00013698,2]
[356102885,1741909644736,-500.0,0.00013698,2]
[356102886,1741909644758,-593.82,0.00013698,2]
[356102887,1741909644780,-500.0,0.00013698,2]
[356102888,1741909644804,-500.0,0.00013698,2]
[356102889,1741909644826,-5665.88,0.00013698,2]
[356102890,1741909644847,-500.0,0.00013698,2]
[356102891,1741909644867,-764.31,0.00013698,2]
[356102892,1741909644888,-500.0,0.00013698,2]
[356102893,1741909644909,-500.0,0.00013698,2]
[356102894,1741909644930,-725.04,0.00013698,2]
[356102895,1741909644951,-575.6,0.00013698,2]
[356102896,1741909645190,-500.0,0.00013698,2]
[356102897,1741909645212,-500.0,0.00013698,2]
[356102898,1741909645236,-500.0,0.00013698,2]
[356102899,1741909645260,-500.0,0.00013698,2]
[356102900,1741909645283,-500.0,0.00013698,2]
[356102901,1741909645306,-500.0,0.00013698,2]
[356102902,1741909645329,-820.96,0.00013698,2]
[356102903,1741909645351,-1230.78,0.00013698,2]
[356102904,1741909645376,-500.0,0.00013698,2]
[356102905,1741909645398,-500.0,0.00013698,2]
[356102906,1741909645420,-500.0,0.00013698,2]
[356102907,1741909645443,-500.0,0.00013698,2]
[356102908,1741909645465,-5307.03,0.00013698,2]
[356102909,1741909645485,-760.23,0.00013698,2]
[356102910,1741909645507,-2557.9,0.00013698,2]
[356102911,1741909645531,-500.0,0.00013698,2]
[356102912,1741909645553,-1186.18,0.00013698,2]
[356102913,1741909645574,-1309.88012436,0.00013698,2]
[356102930,1741909832576,-500.0,0.00013164,2]
[356102932,1741909832586,-310.30329071,0.00013598,2]
[356102934,1741909832596,-300.0,0.00013697,2]
[356102936,1741909832607,-500.0,0.00013698,2]
[356102938,1741909832617,-1290.69,0.00013698,2]
[356102941,1741909832627,-507.77971639,0.00013698,2]
[356102943,1741909832637,-589.69,0.00013698,2]
[356102945,1741909832647,-690.08,0.00013698,2]
[356102947,1741909832657,-151.0,0.00013698,2]
[356102949,1741909832666,-151.0,0.00013698,2]
[356102951,1741909832677,-151.0,0.00013698,2]
[356102953,1741909832687,-658.32,0.00013698,2]
[356102955,1741909832697,-878.07,0.00013698,2]
[356102957,1741909832706,-500.0,0.00013698,2]
[356102959,1741909832716,-500.0,0.00013698,2]
[356102961,1741909832726,-500.0,0.00013698,2]
[356102963,1741909832735,-750.89,0.00013698,2]
[356102965,1741909832745,-500.0,0.00013698,2]
[356102967,1741909832755,-500.0,0.00013698,2]
[356102969,1741909832764,-892.1,0.00013698,2]
[356102971,1741909832774,-500.0,0.00013698,2]
[356102973,1741909832783,-500.0,0.00013698,2]
[356102975,1741909832793,-500.0,0.00013698,2]
[356102977,1741909832803,-500.0,0.00013698,2]
[356102980,1741909832812,-1020.53,0.00013698,2]
[356102983,1741909832822,-500.0,0.00013698,2]
[356102986,1741909832831,-500.0,0.00013698,2]
[356102989,1741909832840,-500.0,0.00013698,2]
[356102992,1741909832850,-500.0,0.00013698,2]
[356102995,1741909832859,-609.99,0.00013698,2]
[356103002,1741909832881,-900.27,0.00013698,2]
[356103005,1741909832891,-1343.51,0.00013698,2]
[356103008,1741909832902,-526.73,0.00013698,2]
[356103011,1741909832913,-500.0,0.00013698,2]
[356103014,1741909832923,-530.21,0.00013698,2]
[356103018,1741909832934,-500.0,0.00013698,2]
[356103021,1741909832943,-500.0,0.00013698,2]
[356103024,1741909832953,-780.13,0.00013698,2]
[356103027,1741909832963,-500.0,0.00013698,2]
[356103030,1741909832973,-680.2,0.00013698,2]
[356103034,1741909832983,-500.0,0.00013698,2]
[356103037,1741909832994,-500.0,0.00013698,2]
[356103040,1741909833004,-500.0,0.00013698,2]
[356103043,1741909833016,-500.0,0.00013698,2]
[356103046,1741909833026,-700.28,0.00013698,2]
[356103049,1741909833038,-500.0,0.00013698,2]
[356103088,1741909833403,-500.0,0.00013698,2]
[356103089,1741909833415,-953.31,0.00013698,2]
[356103090,1741909833427,-500.0,0.00013698,2]
[356103091,1741909833438,-500.0,0.00013698,2]
[356103092,1741909833449,-500.0,0.00013698,2]
[356103093,1741909833459,-674.56,0.00013698,2]
[356103094,1741909833472,-1316.38,0.00013698,2]
[356103095,1741909833482,-2845.83,0.00013698,2]
[356103096,1741909833492,-500.0,0.00013698,2]
[356103097,1741909833503,-500.0,0.00013698,2]
[356103098,1741909833514,-500.0,0.00013698,2]
[356103099,1741909833524,-500.0,0.00013698,2]
[356103100,1741909833535,-941.72,0.00013698,2]
[356103101,1741909833545,-500.0,0.00013698,2]
[356103103,1741909833555,-1934.04,0.00013698,2]
[356103105,1741909833566,-1151.48,0.00013698,2]
[356103107,1741909833577,-2916.62,0.00013698,2]
[356103109,1741909833588,-500.0,0.00013698,2]
[356103112,1741909833599,-500.0,0.00013698,2]
[356103114,1741909833609,-577.71,0.00013698,2]
[356103116,1741909833620,-589.76,0.00013698,2]
[356103118,1741909833630,-10057.83,0.00013698,2]
[356103120,1741909833640,-784.87,0.00013698,2]
[356103122,1741909833650,-1397.97,0.00013698,2]
[356103124,1741909833660,-1185.76,0.00013698,2]
[356103126,1741909833671,-500.0,0.00013698,2]
[356103128,1741909833683,-500.0,0.00013698,2]
[356103130,1741909833694,-500.0,0.00013698,2]
[356103132,1741909833704,-500.0,0.00013698,2]
[356103134,1741909833715,-25364.78,0.00013698,2]
[356103136,1741909833725,-1554.67,0.00013698,2]
[356103138,1741909833736,-5085.91,0.00013698,2]
[356103140,1741909833746,-7893.72,0.00013698,2]
[356103142,1741909833756,-500.0,0.00013698,2]
[356103145,1741909833767,-500.0,0.00013698,2]
[356103147,1741909833777,-1569.79,0.00013698,2]
[356103149,1741909833787,-5429.8,0.00013698,2]
[356103151,1741909833797,-4060.39,0.00013698,2]
[356103153,1741909833807,-500.0,0.00013698,2]
[356103155,1741909833820,-534.27,0.00013698,2]
[356103157,1741909833831,-2934.18,0.00013698,2]
[356103159,1741909833841,-500.0,0.00013698,2]
[356103161,1741909833852,-500.0,0.00013698,2]
[356103163,1741909833863,-569.29,0.00013698,2]
[356103165,1741909833874,-439.64046576,0.00013698,2]
[356103168,1741909833884,-5828.02,0.00013698,2]
[356103170,1741909833895,-516.79,0.00013698,2]
[356103172,1741909833906,-8204.0,0.00013698,2]
[356103174,1741909833916,-500.0,0.00013698,2]
[356103176,1741909833927,-500.0,0.00013698,2]
[356103178,1741909833938,-500.0,0.00013698,2]
[356103180,1741909833948,-12871.39,0.00013698,2]
[356103182,1741909833958,-1031.52,0.00013698,2]
[356103184,1741909833970,-804.71,0.00013698,2]
[356103186,1741909833980,-1788.4,0.00013698,2]
[356103188,1741909833991,-515.84,0.00013698,2]
[356103190,1741909834002,-500.0,0.00013698,2]
[356103193,1741909834014,-1385.98,0.00013698,2]
[356103195,1741909834024,-500.0,0.00013698,2]
[356103197,1741909834035,-500.0,0.00013698,2]
[356103199,1741909834045,-1024.09,0.00013698,2]
[356103201,1741909834055,-500.0,0.00013698,2]
[356103203,1741909834066,-563.67,0.00013698,2]
[356103205,1741909834076,-500.0,0.00013698,2]
[356103207,1741909834086,-500.0,0.00013698,2]
[356103209,1741909834096,-951.44,0.00013698,2]
[356103211,1741909834107,-500.0,0.00013698,2]
[356103213,1741909834117,-500.0,0.00013698,2]
[356103215,1741909834127,-1976.3,0.00013698,2]
[356103217,1741909834137,-500.0,0.00013698,2]
[356103219,1741909834148,-500.0,0.00013698,2]
[356103221,1741909834158,-500.0,0.00013698,2]
[356103223,1741909834168,-570.75,0.00013698,2]
[356103225,1741909834178,-1395.4,0.00013698,2]
[356103227,1741909834188,-500.0,0.00013698,2]
[356103229,1741909834198,-500.0,0.00013698,2]
[356103231,1741909834208,-500.0,0.00013698,2]
[356103233,1741909834218,-500.0,0.00013698,2]
[356103235,1741909834228,-561.97,0.00013698,2]
[356103237,1741909834239,-2081.14,0.00013698,2]
[356103239,1741909834249,-500.0,0.00013698,2]
[356103241,1741909834260,-2258.42,0.00013698,2]
[356103244,1741909834270,-500.0,0.00013698,2]
[356103246,1741909834280,-500.0,0.00013698,2]
[356103248,1741909834291,-500.0,0.00013698,2]
[356103250,1741909834301,-500.0,0.00013698,2]
[356103252,1741909834311,-500.0,0.00013698,2]
[356103254,1741909834321,-500.0,0.00013698,2]
[356103256,1741909834332,-500.0,0.00013698,2]
[356103258,1741909834342,-500.0,0.00013698,2]
[356103260,1741909834353,-1837.15,0.00013698,2]
[356103262,1741909834362,-516.92,0.00013698,2]
[356103264,1741909834372,-500.0,0.00013698,2]
[356103266,1741909834382,-516.41,0.00013698,2]
[356103268,1741909834393,-500.0,0.00013698,2]
[356103270,1741909834403,-500.0,0.00013698,2]
[356103272,1741909834413,-560.7,0.00013698,2]
[356103274,1741909834424,-898.82,0.00013698,2]
[356103276,1741909834438,-1759.27,0.00013698,2]
[356103278,1741909834448,-500.0,0.00013698,2]
[356103280,1741909834458,-1066.47,0.00013698,2]
[356103282,1741909834470,-500.0,0.00013698,2]
[356103284,1741909834479,-3774.48334082,0.00013698,2]
[356103287,1741909834495,-4968.06665918,0.00013698,2]
[356103289,1741909834504,-3032.03334082,0.00013698,2]
[356103292,1741909834526,-936.71346659,0.00013698,2]
[356103666,1741909838332,-1736.82572858,0.00013698,2]
[356103668,1741909838343,-2493.08262015,0.00013698,2]
[356103791,1741909839796,-5021.43484386,0.00013698,2]
[356103793,1741909839807,-500.0,0.00013698,2]
[356103795,1741909839817,-4745.74,0.00013698,2]
[356103796,1741909839827,-843.05,0.00013698,2]
[356103798,1741909839841,-514.48,0.00013698,2]
[356103799,1741909839853,-850.04,0.00013698,2]
[356103801,1741909839863,-579.46,0.00013698,2]
[356103803,1741909839874,-8368.73,0.00013698,2]
[356103804,1741909839886,-1086.54,0.00013698,2]
[356103806,1741909839896,-500.0,0.00013698,2]
[356103808,1741909839906,-912.63,0.00013698,2]
[356103809,1741909839916,-1167.29,0.00013698,2]
[356103811,1741909839926,-1887.45,0.00013698,2]
[356103813,1741909839936,-351.01785152,0.00013698,2]
[356103822,1741909840066,-970.34214848,0.00013698,2]
[356103824,1741909840077,-2036.63,0.00013698,2]
[356103826,1741909840087,-667.52,0.00013698,2]
[356103829,1741909840103,-500.0,0.00013698,2]
[356103832,1741909840113,-3825.60785153,0.00013698,2]
[356103864,1741909840803,-966.75734423,0.00013698,2]
[356104412,1741909846977,-5583.21158035,0.00013698,2]
[356104413,1741909847260,-2986.49999998,0.00013698,2]
[356107920,1741909885869,-500.0,0.00013164,2]
[356107921,1741909885892,-500.0,0.00013673,2]
[356107922,1741909885916,-500.0,0.00013673,2]
[356107923,1741909885940,-500.0,0.00013673,2]
[356107924,1741909885965,-300.0,0.00013697,2]
[356107925,1741909885990,-500.0,0.00013697,2]
[356107926,1741909886017,-193.53278422,0.00013697,2]
[356107929,1741909886043,-500.0,0.00013697,2]
[356107933,1741909886069,-282.68434397,0.00013697,2]
[356107937,1741909886094,-46223.78287181,0.00013698,2]
[356118465,1741910076777,-311.8982895,0.00011,2]
[356118466,1741910198066,-188.1017105,0.00011,2]
[356118467,1741910198090,-436.5512895,0.00012,2]
[356118469,1741910755104,-24900.0,0.00011856,2]
[356118470,1741910755127,-193.53278422,0.00011899,2]
[356118471,1741910755150,-500.0,0.00011899,2]
[356118472,1741910755173,-500.0,0.00011899,2]
[356118473,1741910755196,-500.0,0.00011899,2]
[356118474,1741910755220,-216.60354908,0.00011899,2]
[356118475,1741910755244,-190.73372767,0.00011899,2]
[356118476,1741910755266,-4447.73888876,0.000119,2]
[356118477,1741910755287,-1693.05770644,0.00012598,2]
[356118478,1741910755309,-10000.0,0.00012699,2]
[356118479,1741910755329,-12430.06191615,0.00012699,2]
[356118480,1741910755352,-423.93430171,0.00012709,2]
[356118481,1741910755374,-305.93755223,0.00012709,2]
[356118482,1741910755401,-186.795984,0.0001271,2]
[356118483,1741910755422,-839.57583003,0.000129,2]
[356118484,1741910755444,-500.0,0.00013164,2]
[356118485,1741910755466,-839.57583003,0.00013164,2]
[356118486,1741910755487,-153.0,0.000132,2]
[356118487,1741910755507,-153.0,0.000132,2]
[356118488,1741910755528,-16648.04077619,0.000132,2]
[356118489,1741910755551,-13489.60352277,0.000132,2]
[356118490,1741910759092,-3158.43725335,0.000132,2]
[356118491,1741910759115,-153.0,0.00013278,2]
[356118492,1741910759137,-153.0,0.00013278,2]
[356118493,1741910759159,-16648.04077612,0.00013314,2]
[356118494,1741910759180,-447.09484848,0.00013498,2]
[356118495,1741910759201,-153.0,0.000135,2]
[356118496,1741910759222,-153.0,0.000135,2]
[356118497,1741910759243,-153.0,0.000135,2]
[356118498,1741910759263,-153.0,0.000135,2]
[356118499,1741910759284,-155.5099414,0.000135,2]
[356118500,1741910759305,-306.0,0.000135,2]
[356118501,1741910759326,-186.8724011,0.000135,2]
[356118502,1741910759347,-67.00683208,0.00013521,2]
[356118503,1741910853122,-500.0,0.00013164,2]
[356118504,1741910853145,-357.6758788,0.00013464,2]
[356118505,1741910853169,-357.67587877,0.00013498,2]
[356118506,1741910853192,-357.67587877,0.00013531,2]
[356118507,1741910853216,-214.15628656,0.00013561,2]
[356118508,1741910853247,-296.7540112,0.00013561,2]
[356118509,1741910853272,-300.0,0.00013561,2]
[356118510,1741910853294,-18972.1517519,0.00013562,2]
[356118588,1741911033693,-341.3627157,0.00012581,2]
[356118590,1741911033704,-500.0,0.00013164,2]
[356118592,1741911033715,-834.77361048,0.00013427,2]
[356118595,1741911033725,-300.0,0.00013561,2]
[356118596,1741911033735,-75270.43969052,0.00013562,2]
[356118599,1741911033744,-357.67587877,0.00013565,2]
[356118601,1741911033755,-357.67587877,0.00013598,2]
[356118603,1741911033767,-24365.58581142,0.00013598,2]
[356118605,1741911033777,-300.0,0.000136,4]
[356118607,1741911033790,-3000.0,0.00013661,2]
[356118609,1741911033802,-504.2644824,0.00013673,2]
[356118611,1741911033812,-500.0,0.00013673,2]
[356118613,1741911033823,-500.0,0.00013673,2]
[356118615,1741911033835,-618.76033536,0.00013673,2]
[356118617,1741911033845,-500.0,0.00013673,2]
[356118619,1741911033857,-500.0,0.00013673,2]
[356118621,1741911033871,-500.0,0.00013673,2]
[356118623,1741911033881,-500.91689609,0.00013673,2]
[356118625,1741911033893,-500.0,0.00013673,2]
[356118627,1741911033904,-500.0,0.00013673,2]
[356118629,1741911033914,-500.0,0.00013673,2]
[356118630,1741911033924,-500.0,0.00013673,2]
[356118632,1741911033934,-500.0,0.00013673,2]
[356118634,1741911033945,-500.0,0.00013673,2]
[356118636,1741911033956,-500.0,0.00013673,2]
[356118639,1741911033966,-500.0,0.00013673,2]
[356118641,1741911033977,-500.0,0.00013673,2]
[356118642,1741911033987,-500.0,0.00013673,2]
[356118644,1741911033998,-500.0,0.00013673,2]
[356118646,1741911034008,-500.0,0.00013673,2]
[356118648,1741911034019,-500.0,0.00013673,2]
[356118650,1741911034029,-500.0,0.00013673,2]
[356118652,1741911034043,-9281.24826133,0.00013687,2]
[356118654,1741911034053,-4624.16825848,0.00013698,2]
[356118656,1741911034064,-500.0,0.00013698,2]
[356118658,1741911034075,-500.0,0.00013698,2]
[356118660,1741911034086,-500.0,0.00013698,2]
[356118662,1741911034096,-500.0,0.00013698,2]
[356118664,1741911034106,-500.0,0.00013698,2]
[356118666,1741911034118,-151.0,0.00013698,2]
[356118668,1741911034128,-151.0,0.00013698,2]
[356118670,1741911034140,-500.0,0.00013698,2]
[356118672,1741911034151,-500.0,0.00013698,2]
[356118674,1741911034162,-504.78,0.00013698,2]
[356118676,1741911034172,-500.0,0.00013698,2]
[356118678,1741911034182,-500.0,0.00013698,2]
[356118679,1741911034192,-500.0,0.00013698,2]
[356118681,1741911034206,-500.0,0.00013698,2]
[356118683,1741911034216,-8127.08567623,0.00013698,2]
[356118685,1741911034226,-935.78,0.00013698,2]
[356118687,1741911034237,-500.0,0.00013698,2]
[356118689,1741911034247,-500.0,0.00013698,2]
[356118691,1741911034257,-565.64,0.00013698,2]
[356118693,1741911034268,-500.0,0.00013698,2]
[356118695,1741911034279,-516.11,0.00013698,2]
[356118697,1741911034291,-671.1,0.00013698,2]
[356118699,1741911034302,-747.62,0.00013698,2]
[356118701,1741911034312,-500.0,0.00013698,2]
[356118703,1741911034323,-500.0,0.00013698,2]
[356118705,1741911034333,-553.64,0.00013698,2]
[356118707,1741911034342,-500.0,0.00013698,2]
[356118709,1741911034353,-500.0,0.00013698,2]
[356118711,1741911034362,-500.0,0.00013698,2]
[356118712,1741911034373,-515.76,0.00013698,2]
[356118713,1741911034383,-536.05514205,0.00013698,2]
[356118714,1741911034394,-587.19,0.00013698,2]
[356118715,1741911034406,-538.56,0.00013698,2]
[356118716,1741911034416,-500.0,0.00013698,2]
[356118717,1741911034426,-500.0,0.00013698,2]
[356118718,1741911034437,-613.99,0.00013698,2]